bitfinex/quotes_SOLUSD_20250922
["timestamp","ask_amount","ask_price","bid_price","bid_amount"]
[1758572377984,36.28,217.51,217.44,0.66]
[1758572378654,36.28,217.51,217.44,5.18479858]
[1758572378856,36.28,217.51,217.44,0.66]
[1758572379068,36.28,217.51,217.44,5.18479858]
[1758572379275,36.28,217.51,217.45,4.59875833]
[1758572380466,40.87754605,217.51,217.45,4.59875833]
[1758572380665,40.87754605,217.51,217.44,9.78376387]
[1758572381958,36.28,217.51,217.44,9.78376387]
[1758572383659,40.87749064,217.51,217.44,9.78376387]
[1758572383862,36.28,217.51,217.44,9.78376387]
[1758572384075,36.28,217.51,217.45,0.66]
[1758572384483,5.02728567,217.52,217.45,0.66]
[1758572384667,41.28728567,217.52,217.45,0.66]
[1758572384869,41.28728567,217.52,217.44,9.12376387]
[1758572385383,36.69,217.52,217.44,9.78376387]
[1758572385776,41.28739846,217.52,217.44,9.78376387]
[1758572385961,2.38251374,217.51,217.43,4.59917729]
[1758572386280,0.43,217.5,217.43,4.59917729]
[1758572386756,0.43,217.49,217.43,4.59917729]
[1758572388073,5.02795757,217.49,217.43,4.59917729]
[1758572389077,4.95479858,217.52,217.44,0.66]
[1758572389282,36.26,217.49,217.44,0.66]
[1758572389475,36.26,217.49,217.44,5.25889709]
[1758572390279,5.02749347,217.51,217.44,5.25889709]
[1758572390483,36.26,217.5,217.44,5.25889709]
[1758572390779,5.02749347,217.51,217.44,5.25889709]
[1758572390983,36.26,217.5,217.44,5.25889709]
[1758572395407,26.0,217.53,217.48,4.52479858]
[1758572395584,36.26,217.55,217.49,0.66]
[1758572395886,1.95583166,217.54,217.49,0.66]
[1758572396470,2.38583166,217.54,217.48,4.52479858]
[1758572396685,1.95583166,217.53,217.49,4.59791254]
[1758572396988,36.26,217.55,217.5,0.66]
[1758572397298,1.957838,217.54,217.51,0.69]
[1758572397468,1.957838,217.54,217.49,5.28791254]
[1758572397792,1.957838,217.54,217.5,0.69]
[1758572397973,1.957838,217.54,217.51,0.69]
[1758572398181,36.26,217.56,217.51,0.69]
[1758572398383,1.95907257,217.55,217.51,0.69]
[1758572398582,1.95907257,217.55,217.52,4.59727841]
[1758572399194,1.95907257,217.54,217.52,4.59727841]
[1758572399498,36.26,217.56,217.52,4.59727841]
[1758572399681,1.95865196,217.55,217.52,4.59727841]
[1758572399887,1.95865196,217.54,217.52,4.59727841]
[1758572400080,36.26,217.56,217.52,4.59727841]
[1758572400384,1.95942759,217.55,217.52,4.59727841]
[1758572400580,1.95942759,217.54,217.51,0.69]
[1758572400783,1.95912189,217.53,217.48,6.45886758]
[1758572400987,36.26,217.56,217.49,0.69]
[1758572401186,1.95916801,217.55,217.5,1.86094015]
[1758572401384,39.32584937,217.58,217.51,0.69]
[1758572401688,5.04564499,217.57,217.52,1.86094015]
[1758572401896,1.95979562,217.56,217.53,0.69]
[1758572402080,1.95979562,217.55,217.53,0.69]
[1758572402282,3.08584937,217.57,217.51,4.59748977]
[1758572402481,1.95971916,217.56,217.54,0.69]
[1758572402680,1.95971916,217.55,217.54,0.69]
[1758572402986,1.95971916,217.55,217.51,4.59748977]
[1758572403186,3.51584937,217.57,217.51,4.59748977]
[1758572403396,1.95955326,217.56,217.51,4.59748977]
[1758572403595,1.95955326,217.55,217.51,4.59748977]
[1758572403787,1.95955326,217.54,217.52,0.69]
[1758572403981,3.08584937,217.57,217.51,4.59748977]
[1758572404188,1.95946364,217.56,217.53,0.69]
[1758572404389,31.02496431,217.63,217.54,0.69]
[1758572404679,1.96015981,217.6,217.54,0.69]
[1758572405004,1.96015981,217.59,217.54,0.69]
[1758572405197,3.18575076,217.61,217.54,0.69]
[1758572405504,1.9597273,217.6,217.55,0.69]
[1758572405812,3.1845329,217.61,217.49,4.59791254]
[1758572405813,1.86094015,217.57,217.49,4.59791254]
[1758572406103,2.3897273,217.56,217.48,5.28811512]
[1758572406287,4.25066745,217.55,217.48,0.69]
[1758572406489,1.9597273,217.54,217.49,0.69]
[1758572406804,3.08252275,217.56,217.49,0.69]
[1758572407006,1.95776848,217.55,217.49,0.69]
[1758572407307,3.81870863,217.55,217.49,0.69]
[1758572407511,1.95776848,217.54,217.49,0.69]
[1758572407688,1.95776848,217.54,217.5,0.69]
[1758572407888,1.95776848,217.54,217.45,16.09565416]
[1758572408091,1.95776848,217.54,217.51,0.69]
[1758572409494,1.95776848,217.54,217.5,4.59752259]
[1758572409697,1.95776848,217.54,217.5,5.28752259]
[1758572410086,1.95776848,217.54,217.5,0.69]
[1758572411508,136.15776848,217.54,217.5,0.69]
[1758572411711,134.2,217.54,217.5,0.69]
[1758572412292,1.86094015,217.51,217.44,0.69]
[1758572412511,136.58854711,217.53,217.44,0.69]
[1758572412512,1.86094015,217.49,217.44,0.69]
[1758572412724,0.43,217.48,217.43,10.0]
[1758572413025,1.86094015,217.49,217.44,0.69]
[1758572413202,2.29094015,217.49,217.43,10.0]
[1758572413389,1.95749723,217.48,217.43,10.0]
[1758572413590,2.38749723,217.48,217.43,10.0]
[1758572414220,1.95738794,217.47,217.43,10.69]
[1758572414403,6.45897369,217.49,217.43,10.69]
[1758572414597,1.95743256,217.48,217.43,10.69]
[1758572415097,1.86094015,217.47,217.43,10.0]
[1758572415302,1.86094015,217.45,217.43,10.0]
[1758572415599,2.29094015,217.45,217.43,10.0]
[1758572416217,1.86094015,217.49,217.43,14.59917604]
[1758572416399,38.19794214,217.48,217.44,0.67]
[1758572416598,1.958032,217.47,217.44,0.67]
[1758572417202,1.86094015,217.45,217.43,10.0]
[1758572417402,36.24,217.44,217.43,10.0]
[1758572417602,38.62760087,217.44,217.43,10.0]
[1758572418207,72.31055708,217.44,217.43,10.0]
[1758572420432,5.04158725,217.44,217.43,10.0]
[1758572420599,36.24,217.44,217.43,10.0]
[1758572422211,36.24,217.44,217.43,10.67]
[1758572422426,36.24,217.44,217.43,10.0]
[1758572423512,36.24,217.45,217.43,10.0]
[1758572423828,36.24,217.45,217.43,10.67]
[1758572424032,36.24,217.46,217.44,0.67]
[1758572424323,36.24,217.46,217.43,10.0]
[1758572424324,36.24,217.46,217.45,0.67]
[1758572424535,1.86094015,217.47,217.45,0.67]
[1758572424536,38.10094015,217.47,217.45,0.67]
[1758572424829,38.10094015,217.47,217.46,0.67]
[1758572425615,36.24,217.47,217.46,0.67]
[1758572426012,1.86094015,217.49,217.46,0.67]
[1758572426225,18.19271789,217.53,217.47,0.67]
[1758572426423,38.19780359,217.52,217.47,0.67]
[1758572426720,36.24,217.52,217.47,0.67]
[1758572427221,6.45774246,217.55,217.47,0.67]
[1758572427429,38.19858303,217.54,217.47,0.67]
[1758572427615,36.22,217.54,217.47,0.67]
[1758572427815,36.22,217.54,217.48,4.59812396]
[1758572428013,1.86094015,217.55,217.49,0.7]
[1758572428208,36.22,217.54,217.49,0.7]
[1758572428406,6.45728799,217.57,217.49,0.7]
[1758572428608,36.22,217.55,217.49,0.7]
[1758572428808,36.22,217.56,217.49,0.7]
[1758572430126,36.22,217.56,217.5,4.59770114]
[1758572430518,36.22,217.56,217.51,0.7]
[1758572430833,36.22,217.56,217.52,0.7]
[1758572433226,36.22,217.56,217.51,4.59734883]
[1758572433227,1.86094015,217.53,217.44,0.7]
[1758572433414,1.86094015,217.51,217.44,0.7]
[1758572433610,3.85297336,217.58,217.44,5.29896983]
[1758572433827,40.03998662,217.57,217.45,0.7]
[1758572434027,1.95904647,217.56,217.46,13.59559401]
[1758572434327,38.08094015,217.57,217.47,0.7]
[1758572434914,1.86094015,217.57,217.47,0.7]
[1758572435112,36.22,217.56,217.47,0.7]
[1758572435312,36.22,217.56,217.48,16.09343387]
[1758572435515,36.22,217.56,217.49,0.7]
[1758572436225,36.22,217.56,217.5,4.59770114]
[1758572436417,36.22,217.56,217.51,0.7]
[1758572436612,36.22,217.56,217.52,0.7]
[1758572436815,2.29094015,217.55,217.47,4.5983354]
[1758572437032,1.86094015,217.53,217.45,5.29875262]
[1758572437240,1.86094015,217.51,217.45,4.59875262]
[1758572437533,1.86094015,217.55,217.46,0.7]
[1758572437721,36.22,217.54,217.46,0.7]
[1758572438640,36.22,217.54,217.47,4.5983354]
[1758572438820,36.22,217.54,217.48,0.7]
[1758572439534,41.24688988,217.54,217.45,4.59875833]
[1758572439737,41.24688988,217.54,217.46,0.7]
[1758572440237,5.02688988,217.54,217.46,0.7]
[1758572440420,36.2,217.53,217.46,0.7]
[1758572440833,36.2,217.53,217.47,4.5983354]
[1758572441242,36.2,217.53,217.47,16.7941739]
[1758572441537,36.2,217.53,217.48,0.7]
[1758572441737,36.2,217.53,217.47,16.0941739]
[1758572442038,36.2,217.53,217.48,0.7]
[1758572442743,36.2,217.53,217.47,4.5983354]
[1758572442928,36.2,217.53,217.49,5.2977192]
[1758572443321,39.53836458,217.55,217.49,5.2977192]
[1758572443940,44.13502958,217.55,217.49,0.7]
[1758572444246,0.43,217.54,217.47,4.5983354]
[1758572444420,2.90836458,217.5,217.44,5.29896983]
[1758572444746,134.2,217.53,217.47,26.0]
[1758572444924,134.2,217.53,217.48,4.59812396]
[1758572445339,134.2,217.53,217.48,5.29812396]
[1758572445643,134.63,217.53,217.48,4.59812396]
[1758572446740,139.22708621,217.53,217.48,4.59812396]
[1758572447341,134.63,217.52,217.45,4.59875833]
[1758572447524,2.90836458,217.51,217.45,4.59875833]
[1758572447842,36.2,217.5,217.45,4.59875833]
[1758572448439,36.2,217.5,217.45,5.29875833]
[1758572448824,0.43,217.49,217.43,10.0]
[1758572449030,3.33836458,217.49,217.43,10.0]
[1758572449950,3.33836458,217.49,217.43,14.59907702]
[1758572450742,36.2,217.5,217.44,0.7]
[1758572451056,139.22731949,217.52,217.45,4.59875833]
[1758572451057,134.2,217.52,217.45,4.59875833]
[1758572451222,36.2,217.51,217.46,0.7]
[1758572451426,134.2,217.52,217.46,0.7]
[1758572452843,134.2,217.52,217.43,10.0]
[1758572452844,174.99757712,217.51,217.44,4.59896983]
[1758572453144,139.22757712,217.51,217.44,4.59896983]
[1758572453453,134.2,217.51,217.45,0.7]
[1758572455363,134.2,217.51,217.46,4.59854685]
[1758572455560,134.2,217.51,217.47,0.7]
[1758572455762,134.2,217.51,217.48,0.7]
[1758572457959,134.2,217.51,217.49,4.59791254]
[1758572458964,134.2,217.51,217.5,0.69]
[1758572459165,36.2,217.53,217.5,0.69]
[1758572459353,36.2,217.54,217.5,0.69]
[1758572459551,36.2,217.54,217.51,0.69]
[1758572460654,36.2,217.54,217.49,0.69]
[1758572460839,36.2,217.54,217.46,42.09491399]
[1758572461057,36.2,217.54,217.49,0.69]
[1758572461771,36.2,217.54,217.5,4.59770114]
[1758572462667,7.93481935,217.56,217.5,4.59770114]
[1758572462869,1.96170885,217.55,217.5,4.59770114]
[1758572463162,38.57170885,217.55,217.5,4.59770114]
[1758572463370,5.05222727,217.54,217.5,4.59770114]
[1758572463576,3.09051842,217.54,217.5,4.59770114]
[1758572464172,3.09051842,217.54,217.5,0.69]
[1758572464370,3.09195327,217.54,217.5,0.69]
[1758572464585,2.90836458,217.52,217.45,0.69]
[1758572464880,2.90836458,217.5,217.43,15.2891679]
[1758572465256,3.33836458,217.5,217.43,15.2891679]
[1758572465449,1.96445249,217.49,217.43,10.69]
[1758572465767,44.57716196,217.48,217.43,10.0]
[1758572465951,41.23879738,217.47,217.43,10.0]
[1758572466147,12.56682466,217.46,217.43,10.0]
[1758572466351,2.90836458,217.44,217.43,10.0]
[1758572466657,39.51836458,217.44,217.43,10.0]
[1758572467172,42.6137912,217.44,217.43,10.0]
[1758572467870,42.1837912,217.44,217.43,10.0]
[1758572468078,39.27542662,217.44,217.43,10.0]
[1758572469680,3.09542662,217.44,217.43,10.0]
[1758572469869,36.18,217.48,217.43,15.28918134]
[1758572470176,36.18,217.48,217.44,0.69]
[1758572470378,36.18,217.48,217.43,10.0]
[1758572470379,5.06069528,217.47,217.43,10.0]
[1758572470580,36.61,217.48,217.43,10.0]
[1758572470780,8.39922232,217.47,217.43,10.0]
[1758572471079,2.90836458,217.45,217.43,10.0]
[1758572471283,41.67085774,217.44,217.43,10.0]
[1758572472588,41.24085774,217.44,217.43,10.0]
[1758572473267,39.27575679,217.44,217.43,10.0]
[1758572473572,44.30472662,217.44,217.43,10.0]
[1758572474566,46.26779615,217.44,217.43,10.0]
[1758572474984,59.86339016,217.44,217.43,10.0]
[1758572477989,48.74616073,217.44,217.43,10.0]
[1758572478471,12.56616073,217.44,217.43,10.0]
[1758572478675,48.74616073,217.44,217.43,10.0]
[1758572479593,39.08836458,217.44,217.43,10.0]
[1758572479974,2.90836458,217.44,217.43,10.0]
[1758572480290,39.08836458,217.44,217.43,10.0]
[1758572480696,43.68733441,217.44,217.43,10.0]
[1758572482092,39.08836458,217.44,217.43,10.0]
[1758572483383,2.90836458,217.44,217.43,10.0]
[1758572483586,39.08836458,217.44,217.43,10.0]
[1758572485303,2.90836458,217.46,217.43,10.67]
[1758572485600,36.18,217.45,217.44,0.67]
[1758572486199,28.90836458,217.48,217.44,0.67]
[1758572486499,39.26839417,217.47,217.44,0.67]
[1758572486702,36.18,217.47,217.44,0.67]
[1758572488390,40.7783831,217.47,217.43,10.0]
[1758572488588,36.18,217.47,217.43,10.0]
[1758572488890,36.18,217.47,217.44,0.7]
[1758572491291,3.33836458,217.46,217.43,10.0]
[1758572491607,137.10836458,217.44,217.43,10.0]
[1758572491796,142.58938874,217.44,217.43,10.0]
[1758572492810,147.18835857,217.44,217.43,10.0]
[1758572494307,189.69231716,217.44,217.43,10.0]
[1758572494483,26.0,217.4,217.31,0.7]
[1758572494685,2.90836458,217.35,217.31,0.7]
[1758572494912,36.18,217.34,217.32,0.7]
[1758572495219,36.18,217.34,217.33,0.7]
[1758572496109,2.90836458,217.41,217.33,5.30129756]
[1758572496323,2.90836458,217.41,217.34,0.7]
[1758572496324,36.18,217.4,217.34,0.7]
[1758572497117,134.2,217.39,217.34,0.7]
[1758572497310,36.18,217.38,217.35,4.60087416]
[1758572497513,36.18,217.38,217.36,0.7]
[1758572498021,170.38,217.39,217.36,0.7]
[1758572498798,134.2,217.39,217.36,0.7]
[1758572498995,170.38,217.39,217.36,0.7]
[1758572499789,11.49662706,217.46,217.36,0.7]
[1758572499790,13.59559401,217.47,217.37,4.60045084]
[1758572500028,1.86372605,217.44,217.38,0.7]
[1758572500319,36.16,217.43,217.38,0.7]
[1758572500996,36.16,217.43,217.39,0.7]
[1758572501197,36.16,217.43,217.37,11.50112711]
[1758572501422,36.16,217.43,217.4,0.7]
[1758572501631,36.16,217.43,217.39,0.7]
[1758572502314,36.16,217.43,217.4,0.7]
[1758572502514,36.16,217.42,217.4,0.7]
[1758572503017,36.16,217.41,217.4,0.7]
[1758572503215,1.86372605,217.44,217.4,0.7]
[1758572503517,1.86372605,217.42,217.37,4.60033595]
[1758572503691,36.16,217.41,217.37,4.60033595]
[1758572503900,36.16,217.41,217.37,5.30033595]
[1758572504915,36.16,217.41,217.38,0.7]
[1758572505216,36.16,217.41,217.39,0.7]
[1758572505408,36.16,217.41,217.37,4.60033595]
[1758572505618,36.16,217.42,217.38,0.7]
[1758572505797,170.36,217.43,217.38,0.7]
[1758572506718,170.36,217.43,217.39,4.6000276]
[1758572506917,170.36,217.43,217.4,0.7]
[1758572508120,170.36,217.43,217.37,31.30026216]
[1758572508491,36.16,217.43,217.37,31.30026216]
[1758572509218,36.16,217.43,217.37,4.60026216]
[1758572509416,5.04941907,217.42,217.37,4.60026216]
[1758572509623,3.08914036,217.41,217.35,5.30073378]
[1758572509825,36.16,217.4,217.35,5.30073378]
[1758572510002,36.16,217.4,217.36,0.7]
[1758572510725,36.16,217.43,217.37,4.60045084]
[1758572511013,36.16,217.43,217.38,0.7]
[1758572511220,36.16,217.45,217.38,0.7]
[1758572511412,5.05197303,217.44,217.38,0.7]
[1758572511614,3.09045196,217.44,217.38,0.7]
[1758572512130,36.16,217.45,217.39,16.1000966]
[1758572512312,36.16,217.45,217.4,0.7]
[1758572513300,36.16,217.45,217.41,0.7]
[1758572513625,36.16,217.45,217.42,0.7]
[1758572513803,36.16,217.45,217.39,16.1000966]
[1758572514005,36.16,217.45,217.43,0.7]
[1758572514223,36.16,217.45,217.44,5.29896983]
[1758572514731,1.86372605,217.49,217.44,5.29896983]
[1758572514913,41.2124877,217.48,217.45,0.7]
[1758572515221,4.25564073,217.47,217.37,26.7]
[1758572515428,5.05233123,217.46,217.4,0.7]
[1758572515725,3.86067937,217.5,217.4,0.7]
[1758572515726,39.25173153,217.45,217.4,0.7]
[1758572515901,36.16,217.45,217.38,4.60022596]
[1758572516234,36.16,217.45,217.41,5.29949049]
[1758572517712,36.16,217.45,217.38,16.10083724]
[1758572517923,36.16,217.45,217.41,0.71]
[1758572518329,27.86372605,217.49,217.42,0.71]
[1758572518505,36.14,217.48,217.42,0.71]
[1758572518708,36.14,217.49,217.42,0.71]
[1758572519830,36.14,217.5,217.43,16.0971347]
[1758572520009,5.05329083,217.49,217.44,0.71]
[1758572520209,36.14,217.5,217.44,0.71]
[1758572520828,3.09105321,217.49,217.45,1.86372605]
[1758572521019,36.14,217.51,217.46,0.71]
[1758572521336,3.09122956,217.5,217.47,0.71]
[1758572521636,3.09122956,217.5,217.45,2.57372605]
[1758572521802,3.09122956,217.5,217.47,4.5983354]
[1758572522128,3.09122956,217.53,217.49,1.86372605]
[1758572522341,36.14,217.54,217.49,1.86372605]
[1758572522631,3.09122956,217.53,217.49,2.57372605]
[1758572522809,3.09122956,217.53,217.5,0.71]
[1758572523135,36.14,217.55,217.5,0.71]
[1758572523335,3.08821782,217.54,217.5,0.71]
[1758572523507,36.14,217.55,217.5,0.71]
[1758572523914,36.14,217.55,217.51,4.59748977]
[1758572524712,31.8219189,217.61,217.51,4.59748977]
[1758572524913,46.22045152,217.6,217.51,5.30748977]
[1758572525111,5.48485079,217.59,217.51,18.87219244]
[1758572525337,5.05485079,217.58,217.51,5.30748977]
[1758572525519,1.96323958,217.57,217.51,5.30748977]
[1758572525719,1.96323958,217.57,217.51,7.17121582]
[1758572526305,3.52161121,217.59,217.51,7.17121582]
[1758572526508,1.96150072,217.58,217.51,7.17121582]
[1758572527434,1.96150072,217.58,217.52,0.71]
[1758572527809,1.96150072,217.58,217.53,4.59706707]
[1758572528009,1.96150072,217.58,217.53,5.30706707]
[1758572528823,1.96150072,217.58,217.54,0.71]
[1758572529022,36.12,217.58,217.52,4.59727841]
[1758572529229,36.12,217.58,217.53,0.71]
[1758572529438,0.1,217.61,217.54,0.71]
[1758572529613,36.22,217.61,217.55,1.86372605]
[1758572529815,36.22,217.61,217.56,0.71]
[1758572530036,0.1,217.61,217.57,0.71]
[1758572530238,36.22,217.61,217.57,0.71]
[1758572530928,40.81557206,217.61,217.55,0.71]
[1758572531132,3.51346131,217.6,217.53,4.59703922]
[1758572531322,0.43,217.59,217.52,4.59726912]
[1758572531645,2.38773858,217.59,217.52,4.59726912]
[1758572532341,0.43,217.58,217.51,13.56759618]
[1758572532557,36.12,217.57,217.49,4.59791023]
[1758572532854,4.59664444,217.55,217.47,16.09384421]
[1758572533018,36.12,217.56,217.49,0.71]
[1758572533743,36.12,217.56,217.5,1.86372605]
[1758572534033,36.12,217.56,217.51,0.71]
[1758572534249,36.12,217.56,217.52,0.71]
[1758572534621,36.12,217.56,217.5,16.28813708]
[1758572534925,36.12,217.56,217.5,14.42441103]
[1758572535641,36.12,217.56,217.51,4.59748977]
[1758572536145,40.71648991,217.56,217.51,4.59748977]
[1758572536345,41.14648991,217.56,217.5,14.37441103]
[1758572536526,36.12,217.56,217.5,18.97208868]
[1758572538146,36.12,217.56,217.51,0.66]
[1758572538524,36.12,217.56,217.5,18.31208868]
[1758572538732,36.12,217.56,217.51,0.66]
[1758572538931,36.12,217.56,217.52,0.66]
[1758572539829,4.59587331,217.59,217.53,4.59706707]
[1758572540031,40.71587331,217.59,217.53,4.59706707]
[1758572540634,40.69587331,217.59,217.53,4.59706707]
[1758572541127,1.96372605,217.61,217.54,0.66]
[1758572541128,0.1,217.61,217.54,0.66]
[1758572541322,36.2,217.61,217.54,0.66]
[1758572542124,40.7954236,217.61,217.54,0.66]
[1758572542350,1.86372605,217.58,217.5,13.71441103]
[1758572542551,2.38681803,217.57,217.49,0.66]
[1758572542725,0.43,217.57,217.49,0.66]
[1758572543242,4.59643316,217.56,217.49,5.25789535]
[1758572543940,1.86372605,217.54,217.49,5.25789535]
[1758572544451,1.86372605,217.54,217.5,5.25759553]
[1758572544626,1.86372605,217.54,217.51,0.66]
[1758572545550,1.86372605,217.54,217.52,0.66]
[1758572548036,40.69602442,217.58,217.53,0.68]
[1758572548243,1.86372605,217.57,217.54,0.68]
[1758572548543,1.86372605,217.57,217.55,0.68]
[1758572549342,36.1,217.58,217.55,0.68]
[1758572549746,36.1,217.58,217.53,0.68]
[1758572550052,36.1,217.58,217.54,0.68]
[1758572550235,36.1,217.58,217.55,0.68]
[1758572551756,36.1,217.58,217.54,4.59684829]
[1758572551757,1.86372605,217.59,217.56,0.68]
[1758572552254,1.86372605,217.59,217.57,0.68]
[1758572552558,1.86372605,217.59,217.55,0.68]
[1758572552853,1.86372605,217.59,217.56,0.68]
[1758572553857,1.86372605,217.59,217.56,5.27641392]
[1758572555163,1.86372605,217.6,217.56,5.27641392]
[1758572555341,1.86372605,217.6,217.57,0.68]
[1758572556056,1.86372605,217.6,217.57,5.27618861]
[1758572558366,1.86372605,217.6,217.55,0.68]
[1758572558589,2.90739779,217.58,217.56,0.68]
[1758572559855,2.90739779,217.58,217.54,4.59685575]
[1758572560177,2.90739779,217.58,217.56,0.68]
[1758572560953,2.90739779,217.58,217.56,5.2763807]
[1758572561382,5.99205477,217.58,217.56,0.68]
[1758572561583,2.90739779,217.58,217.56,0.68]
[1758572562076,5.99205477,217.58,217.57,0.68]
[1758572562306,4.87284404,217.58,217.57,0.68]
[1758572562459,7.95750102,217.58,217.57,0.68]
[1758572562659,7.96790582,217.58,217.57,0.68]
[1758572563186,3.09506178,217.58,217.57,5.2762219]
[1758572563362,5.06170061,217.58,217.57,5.2762219]
[1758572563873,1.96663883,217.58,217.57,5.2762219]
[1758572565586,3.09506178,217.6,217.57,0.68]
[1758572565770,1.96722661,217.59,217.57,5.2762219]
[1758572565974,3.09506178,217.6,217.57,5.2762219]
[1758572566174,1.96722654,217.59,217.57,5.2762219]
[1758572566377,3.09506178,217.6,217.57,5.2762219]
[1758572566577,1.96756979,217.59,217.57,5.2762219]
[1758572566782,3.09506178,217.6,217.57,5.2762219]
[1758572566973,1.96756979,217.59,217.57,5.2762219]
[1758572567290,3.09506178,217.6,217.57,5.2762219]
[1758572567476,1.96764904,217.59,217.57,5.2762219]
[1758572567790,1.96763959,217.58,217.57,0.68]
[1758572568460,1.96763959,217.58,217.57,5.2762219]
[1758572568662,3.09506178,217.6,217.57,5.2762219]
[1758572568865,1.96764523,217.59,217.57,5.2762219]
[1758572569086,3.09506178,217.6,217.57,5.2762219]
[1758572569368,3.00739779,217.61,217.57,5.2762219]
[1758572569671,1.96759793,217.6,217.57,5.2762219]
[1758572569885,3.00739779,217.61,217.57,5.2762219]
[1758572570195,1.96759793,217.6,217.57,5.2762219]
[1758572570370,3.00739779,217.61,217.57,5.2762219]
[1758572570568,1.96744815,217.6,217.58,0.68]
[1758572570768,3.00739779,217.61,217.58,0.68]
[1758572570988,1.96744939,217.6,217.59,0.68]
[1758572571192,1.96744939,217.6,217.57,4.5962219]
[1758572571389,6.10245957,217.61,217.58,0.68]
[1758572571591,1.96724601,217.6,217.58,0.68]
[1758572571888,6.10245957,217.61,217.59,4.59579943]
[1758572572089,1.96724622,217.6,217.59,4.59579943]
[1758572573397,3.00739779,217.61,217.59,4.59579943]
[1758572574702,3.00739779,217.61,217.6,0.68]
[1758572574876,0.1,217.61,217.6,0.68]
[1758572575202,0.1,217.61,217.6,26.68]
[1758572575402,0.1,217.61,217.6,40.27559401]
[1758572575696,0.1,217.61,217.6,43.1829918]
[1758572575903,36.16,217.69,217.64,26.0]
[1758572575904,0.1,217.69,217.64,26.0]
[1758572576071,0.1,217.69,217.65,0.68]
[1758572576568,0.1,217.69,217.66,16.08012495]
[1758572576773,0.1,217.69,217.67,0.68]
[1758572577898,0.1,217.69,217.68,4.5938993]
[1758572578077,0.1,217.69,217.68,5.2938993]
[1758572580587,0.1,217.69,217.68,8.20129709]
[1758572580790,0.2,217.73,217.71,26.0]
[1758572580992,0.2,217.73,217.71,28.90739779]
[1758572581295,0.2,217.73,217.72,5.2930553]
[1758572583473,0.2,217.73,217.72,41.3330553]
[1758572584574,0.2,217.73,217.72,54.92864931]
[1758572584791,0.1,217.76,217.75,26.0]
[1758572584985,0.1,217.76,217.75,28.90739779]
[1758572585178,0.1,217.76,217.75,29.60739779]
[1758572585578,0.1,217.76,217.75,34.19982029]
[1758572585777,0.1,217.76,217.75,70.23982029]
[1758572586000,0.1,217.76,217.75,84.34937675]
[1758572586999,0.1,217.76,217.75,97.94497076]
[1758572589903,0.2,217.79,217.76,13.59559401]
[1758572590082,0.2,217.79,217.77,16.5029918]
[1758572590284,0.2,217.79,217.77,17.2029918]
[1758572590779,0.2,217.79,217.77,21.79499253]
[1758572591398,0.2,217.79,217.77,57.81499253]
[1758572592907,0.2,217.79,217.78,5.29178987]
[1758572593088,0.1,217.8,217.78,5.29178987]
[1758572593089,0.1,217.8,217.79,16.5029918]
[1758572593291,0.1,217.81,217.79,16.5029918]
[1758572593292,0.1,217.81,217.79,53.2229918]
[1758572593596,0.2,217.82,217.81,28.90739779]
[1758572593800,0.2,217.82,217.81,64.92739779]
[1758572594101,0.43,217.92,217.82,13.59559401]
[1758572594306,0.43,217.92,217.86,28.90739779]
[1758572594504,0.43,217.92,217.87,36.02]
[1758572595007,0.43,217.92,217.88,4.58968239]
[1758572595603,5.01888216,217.92,217.87,0.69]